{"text_format":"1","workbook":"xlsx","n_sheets":2,"sheets":["DADOS","BM"],"not_rendered":{"charts":0,"images":5,"macros":1,"external_links":0,"defined_names":64,"comments":2,"pivot_tables":0},"unopened":[],"bounds":{"document_bytes":16777216,"sheet_cells":100000,"rows_first":2000,"rows_last":500,"rows_between":2000,"halvings":0,"cell_chars":16384,"cell_head_chars":4096},"cells_cut":0,"cells_raw":0,"read":"whole","date_system":"1900"}

{"sheet":"DADOS","index":0,"n_rows":71,"n_cols":249,"rows_kept":71,"cut":false,"hidden":false,"merged":[[66,240,66,247],[66,248,66,255],[59,0,59,7],[66,208,66,215],[66,216,66,223],[66,224,66,231],[66,96,66,103],[66,104,66,111],[66,184,66,191],[66,112,66,119],[66,232,66,239],[66,176,66,183],[66,128,66,135],[66,136,66,143],[66,200,66,207],[66,144,66,151],[66,168,66,175],[66,192,66,199],[66,24,66,31],[66,32,66,39],[66,88,66,95],[66,120,66,127],[66,40,66,47],[66,48,66,55],[66,56,66,63],[66,64,66,71],[66,152,66,159],[66,160,66,167],[66,72,66,79],[66,80,66,87],[56,0,56,7],[57,0,57,7],[58,0,58,7],[66,0,66,7],[66,8,66,15],[66,16,66,23],[70,0,70,7],[61,0,61,7],[62,0,62,7],[63,0,63,7],[64,0,64,7],[65,0,65,7],[68,0,68,7],[55,0,55,7],[54,0,54,7],[32,0,32,1],[33,0,33,1],[28,4,28,7],[53,0,53,7],[51,0,51,7],[52,0,52,7],[49,0,49,1],[42,0,42,1],[41,0,41,1],[48,0,48,1],[28,1,28,2],[0,1,1,9],[8,1,8,9],[6,0,6,8],[10,0,10,8],[4,0,4,8],[27,4,27,7],[18,5,18,7],[18,3,18,4],[19,3,19,4],[27,1,27,2],[10,18,10,22],[21,5,21,8],[19,5,19,7],[22,0,22,2],[22,5,22,8],[21,0,21,2],[15,0,15,8],[16,18,16,22],[15,18,15,22],[16,0,16,8],[14,18,14,22],[14,0,14,8],[11,18,11,22],[12,0,12,8],[12,18,12,22],[11,0,11,8]]}
[37587,"BM - INSTRUÇÕES DE USO E PREENCHIMENTO"]
["v010"]
[]
[]
["1. Este documento somente pode ser utilizado nas versões do Excel 2003 ou superior. Não deve ser utilizado versões do BROffice. O Documento deve ser salvo SOMENTE em extensão habilitada para macros (.xls ou .xlsm). Se o documento for salvo na extensão .xlsx, o arquivo será INUTILIZADO."]
[]
["2. Para funcionamento pleno desse arquivo, a Segurança de Macros do Excel deve ser habilitada."]
[null,"2.1  Na Versão Excel 2003, selecione na Faixa de Opções: Ferramentas --> Macro --> Segurança --> Na aba Nível de Segurança selecione a Opção \"Baixo\" --> Clique em OK --> Feche e abra o Excel novamente para utilizar a Planilha."]
[null,"2.2 Na Versão Excel 2007 ou superior, selecione na Faixa de Opções: Arquivo --> Opções --> Central de Confiabilidade --> Configurações da Central de Confiabilidade --> Configurações de Macro --> Habilitar todas as Macros --> Clique em OK --> Feche e abra o excel novamente para utilizar a Planilha."]
[]
["3. O Preenchimento deve ser feito somente nas células em amarelo. As outras células são de preenchimento Automático."]
["3.1. O BM identifica automaticamente as metas e macroitens/agrupadores através da estrutura de itens indicada."]
["3.2. Caso o nível reconhecido automaticamente não esteja adequado, poderá ser realizado o ajuste manual através da lista suspensa."]
[]
["4. Ordem de Preenchimento"]
["4.1. na Aba DADOS"]
["4.1.1. Preencha no Quadro abaixo os Dados do TC/CR:"]
[]
["Nº OPERAÇÃO","Nº SICONV","GESTOR","PROGRAMA",null,"AÇÃO / MODALIDADE",null,null,"RECURSO"]
["1042.297-49/2017","847836/2017","Min. Des. Regional","Planejamento Urbano",null,"Apoio a política Nacional de Desenvolvimento Urbano",null,null,"OGU"]
[]
["PROPONENTE / TOMADOR",null,null,"MUNICÍPIO / UF","LOCALIDADE / ENDEREÇO","APELIDO DO EMPREENDIMENTO"]
["Prefeitura Municipal de Vertentes",null,null,"Vertentes/PE","Trav. Pedro F. de Araújo e Tre. Rua Pau Brasil","Pavimentação em Paralelepípedos"]
[]
[]
["4.1.2. Preencha no Quadro abaixo os Dados do CTEF:"]
[]
["Nº CTEF","EMPRESA EXECUTORA",null,"CNPJ","OBJETO DO CTEF",null,null,null,"INÍCIO DA OBRA"]
["203/2019","JRV Engenharia EIRELI - EPP",null,"24.486.271/0001-67","Pavimentação em paralelepípedos graníticos na Travessa Pedro Ferreira de Araújo e em Trecho da Rua Pau Brasil, na Cidade de Vertentes-PE.",null,null,null,"2019-10-01"]
[]
["4.1.3 Selecione abaixo, o regime de Execução do CTEF:"]
[]
["REGIME DE EXECUÇÃO"]
["Empreitada Preço Global"]
[]
[]
[]
[]
["4.1.3. Preencha no Quadro abaixo os Dados do Responsável Técnico pela elaboração do Boletim de Medição:"]
[]
[]
["Nome:",null,"CREA/CAU:","ART/RRT:"]
["Sofia Ximenes Lopes",null,"1816729965","PE20200468894"]
[]
[]
["4.1.4. [Opcional] Preencha no quadro abaixo se houver mais de um Responsável Técnico pela elaboração do Boletim de Medição:"]
[]
[]
["Nome:",null,"CREA/CAU:","ART/RRT:"]
[]
[]
["4.2. Os dados do orçamento contratado devem ser informados nos campos em amarelo claro da aba BM."]
["4.2.1. Para Regime de Empreitada Global ou Integral, devem ser informados somente o Item, Discriminação e Preço Total. Para Regime de Empreitada por Preço Unitário, Tarefa ou Contratação Integrada, informar o Item, Discriminação, Unidade, Quantidade e Preço Unitário."]
["4.2.2. É possível importar automaticamente o orçamento do MO27476 (Planilha Orçamentária – PO) por meio do botão Importar PO na aba Dados."]
["4.2.3. Os dados também podem ser copiados para o BM utilizando-se o recurso Colar Especial → Colar Valores"]
["4.2.4. Podem ser adicionadas ou excluídas linhas do BM por meio do botão Editar Planilha."]
["4.2.5. O orçamento está adequado para receber estrutura de itens com até 4 níveis (meta, nível 2, nível 3 e nível 4) e um nível de serviços."]
["4.2.6. Observação importante: as linhas de metas e macrosserviços (totalizadores) não devem conter dados nas colunas Unid., Qtde. e Preço Unitário."]
["4.2.7. Caso o nível reconhecido automaticamente não esteja coerente, deverá ser realizada adequação manual através da lista."]
["4.2.8. Caso não tenha sido considerado arrendondamento em algum campo do orçamento, o profissional deverá desmarcar a caixa de seleção logo acima da referente coluna (\"Quantidade\", \"Preço Unitário\" e \"Preço Total\")."]
[]
["4.3. A cada medição devem ser seguidos os seguintes passos:"]
["·         Informar o número da medição no campo Medição;"]
["·         Informar a data da medição no campo superior da respectiva coluna no quadro lateral (Medição xx);"]
["·         Para os regimes Empreitada por Preço Unitário, Tarefa, Contratação Integrada e Administração Direta: preencher a quantidade executada no período para cada serviço na coluna da respectiva medição no quadro lateral;"]
["·         Para Empreitada por Preço Global ou Integral: preencher o percentual executado no período para cada serviço na coluna da respectiva medição no quadro lateral."]
["·         Caso seja necessário um número maior de medições que o constante no quadro (24 medições) ou caso o arquivo seja utilizado para empreendimentos já em execução, deverá ser alterado o número da medição da primeira coluna, devendo ser preenchido com o número da última medição aferida e indicando a evolução acumulada até o período na respectiva coluna. As medições futuras seguirão o procedimento padrão.",null,null,null,null,null,null,null,null,null,null,null,null,null,null,null,"·         Para Empreitada por Preço Global ou Integral: preencher o percentual executado no período para cada serviço na coluna da respectiva medição no quadro lateral.",null,null,null,null,null,null,null,"·         Para Empreitada por Preço Global ou Integral: preencher o percentual executado no período para cada serviço na coluna da respectiva medição no quadro lateral.",null,null,null,null,null,null,null,"·         Para Empreitada por Preço Global ou Integral: preencher o percentual executado no período para cada serviço na coluna da respectiva medição no quadro lateral.",null,null,null,null,null,null,null,"·         Para Empreitada por Preço Global ou Integral: preencher o percentual executado no período para cada serviço na coluna da respectiva medição no quadro lateral.",null,null,null,null,null,null,null,"·         Para Empreitada por Preço Global ou Integral: preencher o percentual executado no período para cada serviço na coluna da respectiva medição no quadro lateral.",null,null,null,null,null,null,null,"·         Para Empreitada por Preço Global ou Integral: preencher o percentual executado no período para cada serviço na coluna da respectiva medição no quadro lateral.",null,null,null,null,null,null,null,"·         Para Empreitada por Preço Global ou Integral: preencher o percentual executado no período para cada serviço na coluna da respectiva medição no quadro lateral.",null,null,null,null,null,null,null,"·         Para Empreitada por Preço Global ou Integral: preencher o percentual executado no período para cada serviço na coluna da respectiva medição no quadro lateral.",null,null,null,null,null,null,null,"·         Para Empreitada por Preço Global ou Integral: preencher o percentual executado no período para cada serviço na coluna da respectiva medição no quadro lateral.",null,null,null,null,null,null,null,"·         Para Empreitada por Preço Global ou Integral: preencher o percentual executado no período para cada serviço na coluna da respectiva medição no quadro lateral.",null,null,null,null,null,null,null,"·         Para Empreitada por Preço Global ou Integral: preencher o percentual executado no período para cada serviço na coluna da respectiva medição no quadro lateral.",null,null,null,null,null,null,null,"·         Para Empreitada por Preço Global ou Integral: preencher o percentual executado no período para cada serviço na coluna da respectiva medição no quadro lateral.",null,null,null,null,null,null,null,"·         Para Empreitada por Preço Global ou Integral: preencher o percentual executado no período para cada serviço na coluna da respectiva medição no quadro lateral.",null,null,null,null,null,null,null,"·         Para Empreitada por Preço Global ou Integral: preencher o percentual executado no período para cada serviço na coluna da respectiva medição no quadro lateral.",null,null,null,null,null,null,null,"·         Para Empreitada por Preço Global ou Integral: preencher o percentual executado no período para cada serviço na coluna da respectiva medição no quadro lateral.",null,null,null,null,null,null,null,"·         Para Empreitada por Preço Global ou Integral: preencher o percentual executado no período para cada serviço na coluna da respectiva medição no quadro lateral.",null,null,null,null,null,null,null,"·         Para Empreitada por Preço Global ou Integral: preencher o percentual executado no período para cada serviço na coluna da respectiva medição no quadro lateral.",null,null,null,null,null,null,null,"·         Para Empreitada por Preço Global ou Integral: preencher o percentual executado no período para cada serviço na coluna da respectiva medição no quadro lateral.",null,null,null,null,null,null,null,"·         Para Empreitada por Preço Global ou Integral: preencher o percentual executado no período para cada serviço na coluna da respectiva medição no quadro lateral.",null,null,null,null,null,null,null,"·         Para Empreitada por Preço Global ou Integral: preencher o percentual executado no período para cada serviço na coluna da respectiva medição no quadro lateral.",null,null,null,null,null,null,null,"·         Para Empreitada por Preço Global ou Integral: preencher o percentual executado no período para cada serviço na coluna da respectiva medição no quadro lateral.",null,null,null,null,null,null,null,"·         Para Empreitada por Preço Global ou Integral: preencher o percentual executado no período para cada serviço na coluna da respectiva medição no quadro lateral.",null,null,null,null,null,null,null,"·         Para Empreitada por Preço Global ou Integral: preencher o percentual executado no período para cada serviço na coluna da respectiva medição no quadro lateral.",null,null,null,null,null,null,null,"·         Para Empreitada por Preço Global ou Integral: preencher o percentual executado no período para cada serviço na coluna da respectiva medição no quadro lateral.",null,null,null,null,null,null,null,"·         Para Empreitada por Preço Global ou Integral: preencher o percentual executado no período para cada serviço na coluna da respectiva medição no quadro lateral.",null,null,null,null,null,null,null,"·         Para Empreitada por Preço Global ou Integral: preencher o percentual executado no período para cada serviço na coluna da respectiva medição no quadro lateral.",null,null,null,null,null,null,null,"·         Para Empreitada por Preço Global ou Integral: preencher o percentual executado no período para cada serviço na coluna da respectiva medição no quadro lateral.",null,null,null,null,null,null,null,"·         Para Empreitada por Preço Global ou Integral: preencher o percentual executado no período para cada serviço na coluna da respectiva medição no quadro lateral.",null,null,null,null,null,null,null,"·         Para Empreitada por Preço Global ou Integral: preencher o percentual executado no período para cada serviço na coluna da respectiva medição no quadro lateral.",null,null,null,null,null,null,null,"·         Para Empreitada por Preço Global ou Integral: preencher o percentual executado no período para cada serviço na coluna da respectiva medição no quadro lateral."]
[]
["4.4. Nas medições em que não houver evolução de determinado serviço, é facultada a manutenção do campo vazio ou preechimento com 0 (zero)."]
[]
["4.5. Para cada medição (conforme nº informado no campo Medição), os valores da coluna correspondente à medição em questão são apresentados no BM, que calcula os demais dados de evolução física (qtde ou %) e evolução financeira (R$)."]

{"sheet":"BM","index":1,"n_rows":53,"n_cols":81,"rows_kept":53,"cut":false,"hidden":false,"merged":[[52,65,52,74],[10,57,10,59],[25,73,25,78],[27,73,27,78],[25,69,25,72],[43,69,43,72],[43,65,43,68],[26,69,26,72],[17,57,17,58],[12,62,12,64],[15,57,15,58],[15,60,15,61],[15,62,15,64],[15,65,15,68],[15,69,15,72],[15,73,15,78],[52,60,52,64],[19,65,19,68],[51,60,51,64],[50,60,50,64],[50,65,50,74],[51,65,51,74],[43,73,43,78],[33,73,33,78],[0,73,0,78],[12,69,12,72],[12,73,12,78],[13,69,13,72],[13,73,13,78],[0,69,0,72],[20,73,20,78],[28,73,28,78],[28,69,28,72],[26,73,26,78],[27,69,27,72],[24,69,24,72],[23,69,23,72],[24,73,24,78],[19,73,19,78],[19,69,19,72],[14,69,14,72],[14,73,14,78],[22,73,22,78],[23,73,23,78],[22,69,22,72],[0,57,0,58],[12,60,12,61],[14,62,14,64],[13,60,13,61],[0,60,0,61],[0,62,0,64],[13,62,13,64],[11,57,11,59],[12,65,12,68],[13,65,13,68],[14,65,14,68],[0,65,0,68],[14,57,14,58],[14,60,14,61],[52,17,52,18],[52,22,52,23],[50,54,50,55],[50,17,50,18],[51,54,51,55],[50,22,50,23],[51,17,51,18],[50,11,50,12],[45,12,45,23],[52,54,52,55],[51,22,51,23],[48,11,48,23],[47,12,47,17],[34,62,34,64],[34,69,34,72],[43,62,43,64],[43,60,43,61],[49,11,49,12],[43,57,43,58],[45,57,45,78],[21,73,21,78],[18,65,18,68],[35,69,35,72],[33,69,33,72],[42,60,42,61],[34,57,34,58],[34,60,34,61],[32,62,32,64],[19,57,19,58],[19,60,19,61],[18,62,18,64],[22,62,22,64],[26,62,26,64],[24,62,24,64],[34,73,34,78],[33,57,33,58],[33,60,33,61],[4,12,4,15],[12,57,12,58],[13,57,13,58],[13,28,13,33],[11,53,11,55],[13,40,13,45],[4,23,5,23],[10,42,10,43],[11,50,11,52],[10,30,10,31],[11,21,11,23],[9,20,9,21],[11,11,11,12],[13,11,13,13],[13,14,13,15],[10,14,10,17],[11,18,11,20],[33,62,33,64],[31,73,31,78],[17,69,17,72],[33,65,33,68],[34,65,34,68],[16,57,16,58],[16,60,16,61],[16,62,16,64],[28,62,28,64],[16,65,16,68],[32,60,32,61],[32,57,32,58],[32,65,32,68],[32,69,32,72],[32,73,32,78],[31,57,31,58],[31,60,31,61],[29,73,29,78],[30,57,30,58],[30,60,30,61],[30,62,30,64],[30,65,30,68],[31,65,31,68],[30,69,30,72],[42,65,42,68],[42,69,42,72],[42,73,42,78],[35,57,35,58],[35,60,35,61],[35,62,35,64],[35,73,35,78],[35,65,35,68],[42,62,42,64],[42,57,42,58],[36,57,36,58],[36,60,36,61],[36,62,36,64],[36,65,36,68],[36,69,36,72],[36,73,36,78],[37,57,37,58],[37,60,37,61],[37,62,37,64],[37,65,37,68],[37,69,37,72],[37,73,37,78],[39,57,39,58],[39,60,39,61],[30,73,30,78],[29,57,29,58],[29,60,29,61],[29,62,29,64],[31,69,31,72],[31,62,31,64],[29,69,29,72],[29,65,29,68],[16,69,16,72],[16,73,16,78],[18,73,18,78],[17,65,17,68],[17,73,17,78],[21,57,21,58],[20,57,20,58],[17,62,17,64],[18,60,18,61],[18,69,18,72],[21,65,21,68],[20,69,20,72],[21,69,21,72],[17,60,17,61],[21,62,21,64],[18,57,18,58],[25,57,25,58],[27,57,27,58],[28,60,28,61],[22,60,22,61],[23,62,23,64],[27,60,27,61],[25,60,25,61],[24,60,24,61],[22,57,22,58],[23,57,23,58],[26,57,26,58],[27,62,27,64],[28,57,28,58],[24,57,24,58],[28,65,28,68],[19,62,19,64],[21,60,21,61],[20,65,20,68],[22,65,22,68],[24,65,24,68],[25,65,25,68],[23,65,23,68],[26,65,26,68],[27,65,27,68],[20,62,20,64],[20,60,20,61],[23,60,23,61],[25,62,25,64],[26,60,26,61],[39,62,39,64],[39,65,39,68],[39,69,39,72],[39,73,39,78],[38,57,38,58],[38,60,38,61],[38,62,38,64],[38,65,38,68],[38,69,38,72],[38,73,38,78],[41,57,41,58],[41,60,41,61],[41,62,41,64],[41,65,41,68],[41,69,41,72],[41,73,41,78],[40,57,40,58],[40,60,40,61],[40,62,40,64],[40,65,40,68],[40,69,40,72],[40,73,40,78]]}
[{"$f":"CHOOSE(1+LOG(1+2*(K1=\"Meta\")+4*(K1=\"Nível 2\")+8*(K1=\"Nível 3\")+16*(K1=\"Nível 4\")+32*(K1=\"Serviço\"),2),0,1,2,3,4,\"S\")","v":"S"},{"$f":"IF(OR(A1=\"S\",A1=0),0,IF(ISERROR(I1),H1,SMALL(H1:I1,1)))","v":0},{"$f":"IF($A1=1,OFFSET(C1,-1,0)+1,OFFSET(C1,-1,0))","v":{"$error":"#REF!"}},{"$f":"IF($A1=1,0,IF($A1=2,OFFSET(D1,-1,0)+1,OFFSET(D1,-1,0)))","v":{"$error":"#REF!"}},{"$f":"IF(AND($A1<=2,$A1<>0),0,IF($A1=3,OFFSET(E1,-1,0)+1,OFFSET(E1,-1,0)))","v":{"$error":"#REF!"}},{"$f":"IF(AND($A1<=3,$A1<>0),0,IF($A1=4,OFFSET(F1,-1,0)+1,OFFSET(F1,-1,0)))","v":{"$error":"#REF!"}},{"$f":"IF(AND($A1<=4,$A1<>0),0,IF($A1=\"S\",OFFSET(G1,-1,0)+1,OFFSET(G1,-1,0)))","v":{"$error":"#REF!"}},{"$f":"IF(OR($A1=\"S\",$A1=0),0,MATCH(0,OFFSET($B1,1,$A1,ROW($A$44)-ROW($A1)),0))","v":0},{"$f":"IF(OR($A1=\"S\",$A1=0),0,MATCH(OFFSET($B1,0,$A1)+1,OFFSET($B1,1,$A1,ROW($A$44)-ROW($A1)),0))","v":0},{"$f":"LEN(LEFT($L1,LEN($L1)-1*(RIGHT($L1,1)=\".\")))-LEN(SUBSTITUTE(LEFT($L1,LEN($L1)-1*(RIGHT($L1,1)=\".\")),\".\",\"\"))","v":0},{"$f":"CHOOSE(1+LOG(1+2*($J1=3)+4*($J1=2)+8*($J1=1)+16*(AND($L1<>\"\",$L1<>0,$J1=0))+32*OR($N1<>\"\",RegimeExecucao=\"Global\",AND($L1=\"\",$M1=\"\",$N1=\"\")),2),\"\",\"Nível 4\",\"Nível 3\",\"Nível 2\",\"Meta\",\"Serviço\")","v":"Serviço"},null,null,null,null,null,{"$f":"IF($A1=\"S\",0,$R1)","v":0},{"$f":"IF($A1=\"S\",IF(RegimeExecucao=\"Global\",ROUND($Q1,arredtot),total),IF($A1=0,0,ROUND(SomaAgrup,arredtot)))","v":0},{"$f":"IF(AND($A1=\"S\",COUNTIF($Z$13:$AW$13,mediçao-1)>0),SUM(OFFSET($Z1,0,0,1,MATCH(mediçao-1,$Z$13:$AW$13,0))),IF(AND(RegimeExecucao=\"Global\",$R1>0,COUNTIF($Z$13:$AW$13,mediçao-1)>0),V1/$R1*100,0))","v":0},{"$f":"U1-S1","v":0},{"$f":"IF(AND($A1=\"S\",COUNTIF($Z$13:$AW$13,mediçao)>0),SUM(OFFSET($Z1,0,0,1,MATCH(mediçao,$Z$13:$AW$13,0))),IF(AND(RegimeExecucao=\"Global\",$R1>0,COUNTIF($Z$13:$AW$13,mediçao)>0),X1/$R1*100,0))","v":0},{"$f":"IF($A1=\"S\",VTOTAL,IF($A1=0,0,ROUND(SomaAgrup,arredtot)))","v":0},{"$f":"X1-V1","v":0},{"$f":"IF($A1=\"S\",VTOTAL,IF($A1=0,0,ROUND(SomaAgrup,arredtot)))","v":0},null,null,null,null,null,null,null,null,null,null,null,null,null,null,null,null,null,null,null,null,null,null,null,null,null,null,0,{"$f":"BA1-AY1","v":0},0,{"$f":"IF($A1=\"S\",VTOTAL,IF($A1=0,0,ROUND(SomaAgrup,arredtot)))","v":0},{"$f":"BD1-BB1","v":0},{"$f":"IF($A1=\"S\",VTOTAL,IF($A1=0,0,ROUND(SomaAgrup,arredtot)))","v":0},null,{"$f":"IF(BK1>0,L1,\"\")","v":0},null,{"$f":"IF(BK1>0,M1,\"\")","v":0},{"$f":"IF(BK1>0,N1,\"\")","v":0},null,{"$f":"IF(BR1>0,CHOOSE(MATCH(RegimeExecucao,{\"Unitário\",\"Global\"},0),IF($A1=\"S\",BR1/BN1,\"\"),(BR1/BN1)*100),\"\")","v":""},null,null,{"$f":"IF(BR1>0,CHOOSE(MATCH(RegimeExecucao,{\"Unitário\",\"Global\"},0),IF($A1=\"S\",ROUND(P1,arredunit),\"\"),ROUND(R1,arredtot)),\"\")","v":""},null,null,null,{"$f":"$X1-$BD1","v":0}]
[]
[null,null,"Meta","Nível 2","Nível 3","Nível 4","Serviço",null,null,null,null,null,null,null,true,true,null,true,true]
[]
[null,null,null,null,null,null,null,null,null,null,null,null,{"$f":"IF(CAIXA.modo,\"BA - BOLETIM DE AFERIÇÃO CAIXA\",\"BM - BOLETIM DE MEDIÇÃO\")","v":"BM - BOLETIM DE MEDIÇÃO"},null,null,null,null,null,null,null,null,null,null,"Grau de Sigilo\n#PUBLICO",null,null,null,null,null,null,null,null,null,null,null,null,null,null,null,null,null,null,null,null,null,null,null,null,null,null,null,null,null,null,null,null,null,null,null,null,null,null,null,null,null,null,null,null,null,null,null,null,null,null,null,null,null,null,null,null,"Motivos das glosas"]
[null,null,null,null,null,null,null,null,null,null,null,null,{"$f":"IF(Import.RegimeExecução=\"\",\"PREENCHA O REGIME DE EXECUÇÃO NA ABA DADOS\",DADOS!A34)","v":"Empreitada Preço Global"},null,null,null,null,null,null,null,null,null,null,null,null,null,null,null,null,null,null,null,null,null,null,null,null,null,null,null,null,null,null,null,null,null,null,null,null,null,null,null,null,null,null,null,null,null,null,null,null,null,null,null,null,null,null,null,null,null,null,null,null,null,null,null,null,null,null,null,"não executado"]
[null,null,null,null,null,null,null,null,null,null,null,null,null,null,null,null,null,null,null,null,null,null,null,null,null,null,null,null,null,null,null,null,null,null,null,null,null,null,null,null,null,null,null,null,null,null,null,null,null,null,null,null,null,null,null,null,null,null,null,null,null,null,null,null,null,null,null,null,null,null,null,null,null,null,null,null,null,null,null,null,"não previsto no orçamento"]
[null,null,null,null,null,null,null,null,null,null,null,null,null,null,null,null,null,null,null,null,null,null,null,null,null,{"$f":"numLinhas","v":29},null,null,null,null,null,null,null,null,null,null,null,null,null,null,null,null,null,null,null,null,null,null,null,null,null,null,null,null,null,null,null,null,null,null,null,null,null,null,null,null,null,null,null,null,null,null,null,null,null,null,null,null,null,null,"material inadequado"]
[null,null,null,null,null,null,null,null,null,null,null,null,null,null,null,null,null,null,null,null,null,null,null,null,null,1,2,3,4,5,6,7,8,9,10,11,12,13,14,15,16,17,18,19,20,21,22,23,24,null,null,null,null,null,null,null,null,null,null,null,null,null,null,null,null,null,null,null,null,null,null,null,null,null,null,null,null,null,null,null,"desacordo com os projetos"]
[null,null,null,null,null,null,null,null,null,null,null,{"$f":"\"Realizado Acumulado: \"&TEXT(ROUND(IF(CAIXA.modo,$BD$14,$X$14)/($R$14+10^-12),4),\"0,00%\")","v":"Realizado Acumulado: 64,50%"},null,null,null,null,null,null,null,"Período:","2021-11-16",null,"Medição:",2,null,null,null,null,null,null,null,null,null,null,null,null,null,null,null,null,null,null,null,null,null,null,null,null,null,null,null,null,null,null,"Medição:",{"$f":"mediçao","v":2},null,null,null,null,null,null,null,null,null,null,null,null,null,null,null,null,null,null,null,null,null,null,null,null,"não atende especificações"]
[null,null,null,null,null,null,null,null,{"$f":"RegimeExecucao","v":"Global"},null,null,{"$f":"\"Número de linhas do BM: \"&numLinhas","v":"Número de linhas do BM: 29"},null,null,null,null,null,null,null,null,null,null,null,null,null,null,null,null,null,null,"Datas das Medições",null,null,null,null,null,null,null,null,null,null,null,"Datas das Medições",null,null,null,null,null,null,null,null,null,null,null,null,null,null,"Anexo",null,null,null,null,null,null,null,null,null,null,null,null,null,null,null,null,null,null,null,null,null,null,"qualidade insatisfatória"]
[null,null,null,null,null,null,null,null,null,null,null,"Orçamento Contratado",null,null,null,null,null,null,{"$f":"\"Evolução Física \"&CHOOSE(MATCH(RegimeExecucao,{\"Unitário\",\"Global\"},0),\"(Qtde.)\",\"(%)\")","v":"Evolução Física (%)"},null,null,"Evolução Financeira (R$)",null,null,null,"2019-10-25",null,null,null,null,null,null,null,null,null,null,null,null,null,null,null,null,null,null,null,null,null,null,null,null,{"$f":"\"Aferição Física \"&CHOOSE(MATCH(RegimeExecucao,{\"Unitário\",\"Global\"},0),\"(Qtde.)\",\"(%)\")","v":"Aferição Física (%)"},null,null,"Aferição Financeira (R$)",null,null,null,"Quadro de Glosas",null,null,null,null,null,null,null,null,null,null,null,null,null,null,null,null,null,null,null,null,null,null,"ver observações abaixo"]
["Nível","Altura","n1","n2","n3","n4","n5","Czero","Cnível",null,"Nível","Item","Discriminação","Unid.","Qtde.","Preço Unitário (R$)","Preço Total\n(R$)","Preço Total\n(R$)","Acum. Anterior","Período","Acum. Incluindo Período","Acum. Anterior","Período","Acum. Incluindo Período",null,1,{"$f":"OFFSET(AA13,0,-1)+1","v":2},{"$f":"OFFSET(AB13,0,-1)+1","v":3},4,5,6,7,8,9,10,11,12,13,14,15,16,17,18,19,20,21,22,23,24,null,"Acum. Anterior","Período","Acum. Incluindo Período","Acum. Anterior","Período","Acum. Incluindo Período",null,"Item orçam.",null,{"$f":"M13","v":"Discriminação"},"Unid.",null,{"$f":"CHOOSE(MATCH(RegimeExecucao,{\"Unitário\",\"Global\"},0),\"Quant. Glosada (unid)\",\"Percentual Glosado (%)\")","v":"Percentual Glosado (%)"},null,null,{"$f":"CHOOSE(MATCH(RegimeExecucao,{\"Unitário\",\"Global\"},0),\"Preço Unitário (R$)\",\"Valor Total do Item (R$)\")","v":"Valor Total do Item (R$)"},null,null,null,"Valor Total Glosado (R$)",null,null,null,"Motivo da Glosa"]
[null,{"$f":"COUNTA(OFFSET(B14,1,0):B$57)","v":30},null,null,null,null,null,null,null,null,null,null,null,null,"TOTAL:",null,{"$f":"$R14","v":337309.23},{"$f":"SUMIF(OFFSET($K14,1,0):$K44,\"serviço\",OFFSET(R14,1,0):R$44)","v":337309.23},{"$f":"IF($V$14=0,0,IF(RegimeExecucao=\"Global\",V14/$R14*100,0))","v":37.628386273331451},{"$f":"U14-S14","v":26.874740427352087},{"$f":"IF($X$14=0,0,IF(RegimeExecucao=\"Global\",X14/$R14*100,0))","v":64.503126700683538},{"$f":"SUMIF(OFFSET(K14,1,0):K44,\"Serviço\",OFFSET(V14,1,0):V$44)","v":126924.01999999999},{"$f":"X14-V14","v":90650.98000000001},{"$f":"SUMIF(OFFSET(K14,1,0):K44,\"Serviço\",OFFSET(X14,1,0):X$44)","v":217575},null,null,null,null,{"$f":"\"Preencher abaixo com a \"&CHOOSE(MATCH(RegimeExecucao,{\"Unitário\",\"Global\"},0),\"QUANTIDADE\",\"PERCENTAGEM\")&\" executada no PERÍODO\"","v":"Preencher abaixo com a PERCENTAGEM executada no PERÍODO"},null,null,null,null,null,null,null,null,null,null,null,{"$f":"\"Preencher abaixo com a \"&CHOOSE(MATCH(RegimeExecucao,{\"Unitário\",\"Global\"},0),\"QUANTIDADE\",\"PERCENTAGEM\")&\" executada no PERÍODO\"","v":"Preencher abaixo com a PERCENTAGEM executada no PERÍODO"},null,null,null,null,null,null,null,null,null,{"$f":"IF(BB14=0,0,IF(RegimeExecucao=\"Global\",BB14/$R14*100,0))","v":0},{"$f":"BA14-AY14","v":0},{"$f":"IF(BD14=0,0,IF(RegimeExecucao=\"Global\",BD14/$R14*100,0))","v":0},{"$f":"SUMIF(OFFSET(K14,1,0):K44,\"serviço\",OFFSET(BB14,1,0):BB$44)","v":0},{"$f":"BD14-BB14","v":0},{"$f":"SUMIF(OFFSET($K14,1,0):K44,\"serviço\",OFFSET(BD14,1,0):BD$44)","v":0},null,null,null,"TOTAL:",null,null,{"$f":"IF(BR14=0,0,IF(RegimeExecucao=\"Global\",BR14/$R14*100,0))","v":64.503126700683538},{"$f":"IF(BO14=0,0,IF(RegimeExecucao=\"Global\",BO14/$R14*100,0))","v":0},{"$f":"IF(BP14=0,0,IF(RegimeExecucao=\"Global\",BP14/$R14*100,0))","v":0},{"$f":"IF(AND($A14=\"S\",BR14>0),CHOOSE(MATCH(RegimeExecucao,{\"Unitário\",\"Global\"},0),ROUND(P14,arredunit),ROUND(R14,arredtot)),\"\")","v":""},null,null,null,{"$f":"$X14-$BD14","v":217575}]
[{"$f":"CHOOSE(1+LOG(1+2*(K15=\"Meta\")+4*(K15=\"Nível 2\")+8*(K15=\"Nível 3\")+16*(K15=\"Nível 4\")+32*(K15=\"Serviço\"),2),0,1,2,3,4,\"S\")","v":1},{"$f":"IF(OR(A15=\"S\",A15=0),0,IF(ISERROR(I15),H15,SMALL(H15:I15,1)))","v":29},{"$f":"IF($A15=1,OFFSET(C15,-1,0)+1,OFFSET(C15,-1,0))","v":1},{"$f":"IF($A15=1,0,IF($A15=2,OFFSET(D15,-1,0)+1,OFFSET(D15,-1,0)))","v":0},{"$f":"IF(AND($A15<=2,$A15<>0),0,IF($A15=3,OFFSET(E15,-1,0)+1,OFFSET(E15,-1,0)))","v":0},{"$f":"IF(AND($A15<=3,$A15<>0),0,IF($A15=4,OFFSET(F15,-1,0)+1,OFFSET(F15,-1,0)))","v":0},{"$f":"IF(AND($A15<=4,$A15<>0),0,IF($A15=\"S\",OFFSET(G15,-1,0)+1,OFFSET(G15,-1,0)))","v":0},{"$f":"IF(OR($A15=\"S\",$A15=0),0,MATCH(0,OFFSET($B15,1,$A15,ROW($A$44)-ROW($A15)),0))","v":29},{"$f":"IF(OR($A15=\"S\",$A15=0),0,MATCH(OFFSET($B15,0,$A15)+1,OFFSET($B15,1,$A15,ROW($A$44)-ROW($A15)),0))","v":{"$error":"#N/A"}},{"$f":"LEN(LEFT($L15,LEN($L15)-1*(RIGHT($L15,1)=\".\")))-LEN(SUBSTITUTE(LEFT($L15,LEN($L15)-1*(RIGHT($L15,1)=\".\")),\".\",\"\"))","v":0},"Meta","1.","PAVIMENTACAO DE DIVERSAS RUAS DO MUNICÍPIO DE VERTENTES-PE","",0,0,null,{"$f":"IF($A15=\"S\",IF(RegimeExecucao=\"Global\",ROUND($Q15,arredtot),total),IF($A15=0,0,ROUND(SomaAgrup,arredtot)))","v":337309.23},{"$f":"IF(AND($A15=\"S\",COUNTIF($Z$13:$AW$13,mediçao-1)>0),SUM(OFFSET($Z15,0,0,1,MATCH(mediçao-1,$Z$13:$AW$13,0))),IF(AND(RegimeExecucao=\"Global\",$R15>0,COUNTIF($Z$13:$AW$13,mediçao-1)>0),V15/$R15*100,0))","v":37.628386273331451},{"$f":"U15-S15","v":26.874740427352087},{"$f":"IF(AND($A15=\"S\",COUNTIF($Z$13:$AW$13,mediçao)>0),SUM(OFFSET($Z15,0,0,1,MATCH(mediçao,$Z$13:$AW$13,0))),IF(AND(RegimeExecucao=\"Global\",$R15>0,COUNTIF($Z$13:$AW$13,mediçao)>0),X15/$R15*100,0))","v":64.503126700683538},{"$f":"IF($A15=\"S\",VTOTAL,IF($A15=0,0,ROUND(SomaAgrup,arredtot)))","v":126924.02},{"$f":"X15-V15","v":90650.98},{"$f":"IF($A15=\"S\",VTOTAL,IF($A15=0,0,ROUND(SomaAgrup,arredtot)))","v":217575},null,null,null,null,null,null,null,null,null,null,null,null,null,null,null,null,null,null,null,null,null,null,null,null,null,null,0,{"$f":"BA15-AY15","v":0},0,{"$f":"IF($A15=\"S\",VTOTAL,IF($A15=0,0,ROUND(SomaAgrup,arredtot)))","v":0},{"$f":"BD15-BB15","v":0},{"$f":"IF($A15=\"S\",VTOTAL,IF($A15=0,0,ROUND(SomaAgrup,arredtot)))","v":0},null,{"$f":"IF(BK15>0,L15,\"\")","v":"1."},null,{"$f":"IF(BK15>0,M15,\"\")","v":"PAVIMENTACAO DE DIVERSAS RUAS DO MUNICÍPIO DE VERTENTES-PE"},{"$f":"IF(BK15>0,N15,\"\")","v":""},null,{"$f":"IF(BR15>0,CHOOSE(MATCH(RegimeExecucao,{\"Unitário\",\"Global\"},0),IF($A15=\"S\",BR15/BN15,\"\"),(BR15/BN15)*100),\"\")","v":64.503126700683538},null,null,{"$f":"IF(BR15>0,CHOOSE(MATCH(RegimeExecucao,{\"Unitário\",\"Global\"},0),IF($A15=\"S\",ROUND(P15,arredunit),\"\"),ROUND(R15,arredtot)),\"\")","v":337309.23},null,null,null,217575]
[{"$f":"CHOOSE(1+LOG(1+2*(K16=\"Meta\")+4*(K16=\"Nível 2\")+8*(K16=\"Nível 3\")+16*(K16=\"Nível 4\")+32*(K16=\"Serviço\"),2),0,1,2,3,4,\"S\")","v":2},{"$f":"IF(OR(A16=\"S\",A16=0),0,IF(ISERROR(I16),H16,SMALL(H16:I16,1)))","v":12},{"$f":"IF($A16=1,OFFSET(C16,-1,0)+1,OFFSET(C16,-1,0))","v":1},{"$f":"IF($A16=1,0,IF($A16=2,OFFSET(D16,-1,0)+1,OFFSET(D16,-1,0)))","v":1},{"$f":"IF(AND($A16<=2,$A16<>0),0,IF($A16=3,OFFSET(E16,-1,0)+1,OFFSET(E16,-1,0)))","v":0},{"$f":"IF(AND($A16<=3,$A16<>0),0,IF($A16=4,OFFSET(F16,-1,0)+1,OFFSET(F16,-1,0)))","v":0},{"$f":"IF(AND($A16<=4,$A16<>0),0,IF($A16=\"S\",OFFSET(G16,-1,0)+1,OFFSET(G16,-1,0)))","v":0},28,12,{"$f":"LEN(LEFT($L16,LEN($L16)-1*(RIGHT($L16,1)=\".\")))-LEN(SUBSTITUTE(LEFT($L16,LEN($L16)-1*(RIGHT($L16,1)=\".\")),\".\",\"\"))","v":0},"Nível 2",null,"TRAVESSA PEDRO FERREIRA DE ARAÚJO",null,null,null,null,{"$f":"IF($A16=\"S\",IF(RegimeExecucao=\"Global\",ROUND($Q16,arredtot),total),IF($A16=0,0,ROUND(SomaAgrup,arredtot)))","v":287600.01},{"$f":"IF(AND($A16=\"S\",COUNTIF($Z$13:$AW$13,mediçao-1)>0),SUM(OFFSET($Z16,0,0,1,MATCH(mediçao-1,$Z$13:$AW$13,0))),IF(AND(RegimeExecucao=\"Global\",$R16>0,COUNTIF($Z$13:$AW$13,mediçao-1)>0),V16/$R16*100,0))","v":44.132133375099677},{"$f":"U16-S16","v":31.519811143261087},{"$f":"IF(AND($A16=\"S\",COUNTIF($Z$13:$AW$13,mediçao)>0),SUM(OFFSET($Z16,0,0,1,MATCH(mediçao,$Z$13:$AW$13,0))),IF(AND(RegimeExecucao=\"Global\",$R16>0,COUNTIF($Z$13:$AW$13,mediçao)>0),X16/$R16*100,0))","v":75.651944518360764},{"$f":"IF($A16=\"S\",VTOTAL,IF($A16=0,0,ROUND(SomaAgrup,arredtot)))","v":126924.02},{"$f":"X16-V16","v":90650.98},{"$f":"IF($A16=\"S\",VTOTAL,IF($A16=0,0,ROUND(SomaAgrup,arredtot)))","v":217575},null,null,null,null,null,null,null,null,null,null,null,null,null,null,null,null,null,null,null,null,null,null,null,null,null,null,0,{"$f":"BA16-AY16","v":0},0,{"$f":"IF($A16=\"S\",VTOTAL,IF($A16=0,0,ROUND(SomaAgrup,arredtot)))","v":0},{"$f":"BD16-BB16","v":0},{"$f":"IF($A16=\"S\",VTOTAL,IF($A16=0,0,ROUND(SomaAgrup,arredtot)))","v":0},null,{"$f":"IF(BK16>0,L16,\"\")","v":0},null,{"$f":"IF(BK16>0,M16,\"\")","v":"TRAVESSA PEDRO FERREIRA DE ARAÚJO"},{"$f":"IF(BK16>0,N16,\"\")","v":0},null,{"$f":"IF(BR16>0,CHOOSE(MATCH(RegimeExecucao,{\"Unitário\",\"Global\"},0),IF($A16=\"S\",BR16/BN16,\"\"),(BR16/BN16)*100),\"\")","v":75.651944518360764},null,null,{"$f":"IF(BR16>0,CHOOSE(MATCH(RegimeExecucao,{\"Unitário\",\"Global\"},0),IF($A16=\"S\",ROUND(P16,arredunit),\"\"),ROUND(R16,arredtot)),\"\")","v":287600.01},null,null,null,{"$f":"$X16-$BD16","v":217575}]
[{"$f":"CHOOSE(1+LOG(1+2*(K17=\"Meta\")+4*(K17=\"Nível 2\")+8*(K17=\"Nível 3\")+16*(K17=\"Nível 4\")+32*(K17=\"Serviço\"),2),0,1,2,3,4,\"S\")","v":3},{"$f":"IF(OR(A17=\"S\",A17=0),0,IF(ISERROR(I17),H17,SMALL(H17:I17,1)))","v":2},1,1,1,0,0,11,2,1,"Nível 3","1.1.","SERVIÇOS PRELIMINARES","",0,0,null,3642.6,100,0,100,3642.6,{"$f":"X17-V17","v":0},3642.6,null,null,null,null,null,null,null,null,null,null,null,null,null,null,null,null,null,null,null,null,null,null,null,null,null,null,0,{"$f":"BA17-AY17","v":0},0,0,{"$f":"BD17-BB17","v":0},0,null,{"$f":"IF(BK17>0,L17,\"\")","v":"1.1."},null,{"$f":"IF(BK17>0,M17,\"\")","v":"SERVIÇOS PRELIMINARES"},{"$f":"IF(BK17>0,N17,\"\")","v":""},null,{"$f":"IF(BR17>0,CHOOSE(MATCH(RegimeExecucao,{\"Unitário\",\"Global\"},0),IF($A17=\"S\",BR17/BN17,\"\"),(BR17/BN17)*100),\"\")","v":100},null,null,{"$f":"IF(BR17>0,CHOOSE(MATCH(RegimeExecucao,{\"Unitário\",\"Global\"},0),IF($A17=\"S\",ROUND(P17,arredunit),\"\"),ROUND(R17,arredtot)),\"\")","v":3642.6},null,null,null,3642.6]
["S",0,1,1,1,0,1,0,0,3,"Serviço","1.1.0.1.","PLACA DE OBRA EM CHAPA DE ACO GALVANIZADO","M2",10,407.41,3642.6,3642.6,100,0,100,3642.6,0,3642.6,null,100,null,null,null,null,null,null,null,null,null,null,null,null,null,null,null,null,null,null,null,null,null,null,null,null,0,0,0,0,0,0,null,"1.1.0.1.",null,"PLACA DE OBRA EM CHAPA DE ACO GALVANIZADO","M2",null,{"$f":"IF(BR18>0,CHOOSE(MATCH(RegimeExecucao,{\"Unitário\",\"Global\"},0),IF($A18=\"S\",BR18/BN18,\"\"),(BR18/BN18)*100),\"\")","v":100},null,null,{"$f":"IF(BR18>0,CHOOSE(MATCH(RegimeExecucao,{\"Unitário\",\"Global\"},0),IF($A18=\"S\",ROUND(P18,arredunit),\"\"),ROUND(R18,arredtot)),\"\")","v":3642.6},null,null,null,3642.6]
[3,5,1,1,2,0,0,9,5,2,"Nível 3","1.2.1.","PAVIMENTAÇÃO","",0,0,null,204791.3,43.944913675532113,21.866094897585988,65.811008573118102,89995.36,44779.86,134775.22,null,null,null,null,null,null,null,null,null,null,null,null,null,null,null,null,null,null,null,null,null,null,null,null,null,null,0,0,0,0,0,0,null,"1.2.1.",null,"PAVIMENTAÇÃO","",null,{"$f":"IF(BR19>0,CHOOSE(MATCH(RegimeExecucao,{\"Unitário\",\"Global\"},0),IF($A19=\"S\",BR19/BN19,\"\"),(BR19/BN19)*100),\"\")","v":65.811008573118102},null,null,{"$f":"IF(BR19>0,CHOOSE(MATCH(RegimeExecucao,{\"Unitário\",\"Global\"},0),IF($A19=\"S\",ROUND(P19,arredunit),\"\"),ROUND(R19,arredtot)),\"\")","v":204791.3},null,null,null,134775.22]
["S",0,1,1,2,0,1,0,0,3,"Serviço","1.2.1.1.","REGULARIZACAO E COMPACTACAO DE SUBLEITO ATE 20 CM DE ESPESSURA","M2",1119.3800000000001,1.7,3824.38,3824.38,100,0,100,3824.38,0,3824.38,null,100,null,null,null,null,null,null,null,null,null,null,null,null,null,null,null,null,null,null,null,null,null,null,null,null,0,0,0,0,0,0,null,"1.2.1.1.",null,"REGULARIZACAO E COMPACTACAO DE SUBLEITO ATE 20 CM DE ESPESSURA","M2",null,{"$f":"IF(BR20>0,CHOOSE(MATCH(RegimeExecucao,{\"Unitário\",\"Global\"},0),IF($A20=\"S\",BR20/BN20,\"\"),(BR20/BN20)*100),\"\")","v":100},null,null,{"$f":"IF(BR20>0,CHOOSE(MATCH(RegimeExecucao,{\"Unitário\",\"Global\"},0),IF($A20=\"S\",ROUND(P20,arredunit),\"\"),ROUND(R20,arredtot)),\"\")","v":3824.38},null,null,null,3824.38]
["S",0,1,1,2,0,2,0,0,3,"Serviço","1.2.1.2.","ASSENTAMENTO DE GUIA (MEIO-FIO) EM TRECHO RETO, CONFECCIONADA EM CONCRETO PRÉ-FABRICADO, DIMENSÕES 100X15X13X30 CM (COMPRIMENTO X BASE INFERIOR X BASE SUPERIOR X ALTURA), PARA VIAS URBANAS (USO VIÁRIO). AF_06/2016","M",448.69,40.28,38762.339999999997,38762.339999999997,41.48,58.52,100,16078.62,22683.719999999994,38762.339999999997,null,41.48,58.52,null,null,null,null,null,null,null,null,null,null,null,null,null,null,null,null,null,null,null,null,null,null,null,0,0,0,0,0,0,null,"1.2.1.2.",null,"ASSENTAMENTO DE GUIA (MEIO-FIO) EM TRECHO RETO, CONFECCIONADA EM CONCRETO PRÉ-FABRICADO, DIMENSÕES 100X15X13X30 CM (COMPRIMENTO X BASE INFERIOR X BASE SUPERIOR X ALTURA), PARA VIAS URBANAS (USO VIÁRIO). AF_06/2016","M",null,{"$f":"IF(BR21>0,CHOOSE(MATCH(RegimeExecucao,{\"Unitário\",\"Global\"},0),IF($A21=\"S\",BR21/BN21,\"\"),(BR21/BN21)*100),\"\")","v":100},null,null,{"$f":"IF(BR21>0,CHOOSE(MATCH(RegimeExecucao,{\"Unitário\",\"Global\"},0),IF($A21=\"S\",ROUND(P21,arredunit),\"\"),ROUND(R21,arredtot)),\"\")","v":38762.339999999997},null,null,null,38762.339999999997]
["S",0,1,1,2,0,3,0,0,3,"Serviço","1.2.1.3.","EXECUÇÃO DE SARJETA DE CONCRETO USINADO, MOLDADA  IN LOCO  EM TRECHO RETO, 30 CM BASE X 15 CM ALTURA. AF_06/2016","M",404.49,41.21,39040.49,39040.49,41.8,11.39,53.19,16318.92,4446.7199999999993,20765.64,null,41.8,11.39,null,null,null,null,null,null,null,null,null,null,null,null,null,null,null,null,null,null,null,null,null,null,null,0,0,0,0,0,0,null,"1.2.1.3.",null,"EXECUÇÃO DE SARJETA DE CONCRETO USINADO, MOLDADA  IN LOCO  EM TRECHO RETO, 30 CM BASE X 15 CM ALTURA. AF_06/2016","M",null,{"$f":"IF(BR22>0,CHOOSE(MATCH(RegimeExecucao,{\"Unitário\",\"Global\"},0),IF($A22=\"S\",BR22/BN22,\"\"),(BR22/BN22)*100),\"\")","v":53.190008629502351},null,null,{"$f":"IF(BR22>0,CHOOSE(MATCH(RegimeExecucao,{\"Unitário\",\"Global\"},0),IF($A22=\"S\",ROUND(P22,arredunit),\"\"),ROUND(R22,arredtot)),\"\")","v":39040.49},null,null,null,20765.64]
["S",0,1,1,2,0,4,0,0,3,"Serviço","1.2.1.4.","PAVIMENTO EM PARALELEPIPEDO SOBRE COLCHAO DE AREIA REJUNTADO COM ARGAMASSA DE CIMENTO E AREIA NO TRAÇO 1:3 (PEDRAS PEQUENAS 30 A 35 PECAS POR M2)","M2",998.03,61.22,123164.09,123164.09,43.66,14.329999999999998,57.989999999999995,53773.440000000002,17649.419999999998,71422.86,null,43.66,14.33,null,null,null,null,null,null,null,null,null,null,null,null,null,null,null,null,null,null,null,null,null,null,null,0,0,0,0,0,0,null,"1.2.1.4.",null,"PAVIMENTO EM PARALELEPIPEDO SOBRE COLCHAO DE AREIA REJUNTADO COM ARGAMASSA DE CIMENTO E AREIA NO TRAÇO 1:3 (PEDRAS PEQUENAS 30 A 35 PECAS POR M2)","M2",null,{"$f":"IF(BR23>0,CHOOSE(MATCH(RegimeExecucao,{\"Unitário\",\"Global\"},0),IF($A23=\"S\",BR23/BN23,\"\"),(BR23/BN23)*100),\"\")","v":57.990003417392202},null,null,{"$f":"IF(BR23>0,CHOOSE(MATCH(RegimeExecucao,{\"Unitário\",\"Global\"},0),IF($A23=\"S\",ROUND(P23,arredunit),\"\"),ROUND(R23,arredtot)),\"\")","v":123164.09},null,null,null,71422.86]
[3,4,1,1,3,0,0,4,{"$error":"#N/A"},2,"Nível 3","1.2.2.","CALÇADA","",0,0,null,79166.11,42.045845122363595,57.942874798319629,99.988719920683224,33286.06,45871.119999999995,79157.179999999993,null,null,null,null,null,null,null,null,null,null,null,null,null,null,null,null,null,null,null,null,null,null,null,null,null,null,0,0,0,0,0,0,null,"1.2.2.",null,"CALÇADA","",null,{"$f":"IF(BR24>0,CHOOSE(MATCH(RegimeExecucao,{\"Unitário\",\"Global\"},0),IF($A24=\"S\",BR24/BN24,\"\"),(BR24/BN24)*100),\"\")","v":99.988719920683224},null,null,{"$f":"IF(BR24>0,CHOOSE(MATCH(RegimeExecucao,{\"Unitário\",\"Global\"},0),IF($A24=\"S\",ROUND(P24,arredunit),\"\"),ROUND(R24,arredtot)),\"\")","v":79166.11},null,null,null,79157.179999999993]
["S",0,1,1,3,0,1,0,0,3,"Serviço","1.2.2.1.","PISO TÁTIL DIRECIONAL E/OU ALERTA, DE CONCRETO - DIRECIONAL E ALERTA, 40X40X2,5 CM.","M2",39.6,90.58,2257.06,2257.06,37.5,62.5,100,846.4,1410.6599999999999,2257.06,null,37.5,62.5,null,null,null,null,null,null,null,null,null,null,null,null,null,null,null,null,null,null,null,null,null,null,null,0,0,0,0,0,0,null,"1.2.2.1.",null,"PISO TÁTIL DIRECIONAL E/OU ALERTA, DE CONCRETO - DIRECIONAL E ALERTA, 40X40X2,5 CM.","M2",null,{"$f":"IF(BR25>0,CHOOSE(MATCH(RegimeExecucao,{\"Unitário\",\"Global\"},0),IF($A25=\"S\",BR25/BN25,\"\"),(BR25/BN25)*100),\"\")","v":100},null,null,{"$f":"IF(BR25>0,CHOOSE(MATCH(RegimeExecucao,{\"Unitário\",\"Global\"},0),IF($A25=\"S\",ROUND(P25,arredunit),\"\"),ROUND(R25,arredtot)),\"\")","v":2257.06},null,null,null,2257.06]
["S",0,1,1,3,0,2,0,0,3,"Serviço","1.2.2.2.","ALVENARIA DE EMBASAMENTO EM TIJOLOS CERAMICOS MACICOS 5X10X20CM, ASSENTADO  COM ARGAMASSA TRACO 1:2:8 (CIMENTO, CAL E AREIA)","M3",7.97,696.86,12394.47,12394.47,42.8,57.179999999999993,99.97999999999999,5304.83,7087.16,12391.99,null,42.8,57.18,null,null,null,null,null,null,null,null,null,null,null,null,null,null,null,null,null,null,null,null,null,null,null,0,0,0,0,0,0,null,"1.2.2.2.",null,"ALVENARIA DE EMBASAMENTO EM TIJOLOS CERAMICOS MACICOS 5X10X20CM, ASSENTADO  COM ARGAMASSA TRACO 1:2:8 (CIMENTO, CAL E AREIA)","M3",null,{"$f":"IF(BR26>0,CHOOSE(MATCH(RegimeExecucao,{\"Unitário\",\"Global\"},0),IF($A26=\"S\",BR26/BN26,\"\"),(BR26/BN26)*100),\"\")","v":99.979991076665641},null,null,{"$f":"IF(BR26>0,CHOOSE(MATCH(RegimeExecucao,{\"Unitário\",\"Global\"},0),IF($A26=\"S\",ROUND(P26,arredunit),\"\"),ROUND(R26,arredtot)),\"\")","v":12394.47},null,null,null,12391.99]
["S",0,1,1,3,0,3,0,0,3,"Serviço","1.2.2.3.","EXECUÇÃO DE PASSEIO (CALÇADA) OU PISO DE CONCRETO COM CONCRETO MOLDADO IN LOCO, FEITO EM OBRA, ACABAMENTO CONVENCIONAL, NÃO ARMADO. AF_07/2016","M3",41.68,647.71,64514.58,64514.58,42.06,57.930000000000007,99.990000000000009,27134.83,37373.299999999996,64508.13,null,42.06,57.93,null,null,null,null,null,null,null,null,null,null,null,null,null,null,null,null,null,null,null,null,null,null,null,0,0,0,0,0,0,null,"1.2.2.3.",null,"EXECUÇÃO DE PASSEIO (CALÇADA) OU PISO DE CONCRETO COM CONCRETO MOLDADO IN LOCO, FEITO EM OBRA, ACABAMENTO CONVENCIONAL, NÃO ARMADO. AF_07/2016","M3",null,{"$f":"IF(BR27>0,CHOOSE(MATCH(RegimeExecucao,{\"Unitário\",\"Global\"},0),IF($A27=\"S\",BR27/BN27,\"\"),(BR27/BN27)*100),\"\")","v":99.990002259954252},null,null,{"$f":"IF(BR27>0,CHOOSE(MATCH(RegimeExecucao,{\"Unitário\",\"Global\"},0),IF($A27=\"S\",ROUND(P27,arredunit),\"\"),ROUND(R27,arredtot)),\"\")","v":64514.58},null,null,null,64508.13]
[2,10,1,2,0,0,0,16,10,1,"Nível 2","1.3.","TRECHO DA RUA PAU BRASIL","",0,0,null,41677.31,0,0,0,0,0,0,null,null,null,null,null,null,null,null,null,null,null,null,null,null,null,null,null,null,null,null,null,null,null,null,null,null,0,0,0,0,0,0,null,"1.3.",null,"TRECHO DA RUA PAU BRASIL","",null,{"$f":"IF(BR28>0,CHOOSE(MATCH(RegimeExecucao,{\"Unitário\",\"Global\"},0),IF($A28=\"S\",BR28/BN28,\"\"),(BR28/BN28)*100),\"\")","v":""},null,null,{"$f":"IF(BR28>0,CHOOSE(MATCH(RegimeExecucao,{\"Unitário\",\"Global\"},0),IF($A28=\"S\",ROUND(P28,arredunit),\"\"),ROUND(R28,arredtot)),\"\")","v":""},null,null,null,0]
[3,5,1,2,1,0,0,9,5,2,"Nível 3","1.3.1.","PAVIMENTAÇÃO","",0,0,null,31864.7,0,0,0,0,0,0,null,null,null,null,null,null,null,null,null,null,null,null,null,null,null,null,null,null,null,null,null,null,null,null,null,null,0,0,0,0,0,0,null,"1.3.1.",null,"PAVIMENTAÇÃO","",null,{"$f":"IF(BR29>0,CHOOSE(MATCH(RegimeExecucao,{\"Unitário\",\"Global\"},0),IF($A29=\"S\",BR29/BN29,\"\"),(BR29/BN29)*100),\"\")","v":""},null,null,{"$f":"IF(BR29>0,CHOOSE(MATCH(RegimeExecucao,{\"Unitário\",\"Global\"},0),IF($A29=\"S\",ROUND(P29,arredunit),\"\"),ROUND(R29,arredtot)),\"\")","v":""},null,null,null,0]
["S",0,1,2,1,0,1,0,0,3,"Serviço","1.3.1.1.","REGULARIZACAO E COMPACTACAO DE SUBLEITO ATE 20 CM DE ESPESSURA","M2",1646.14,1.7,598.61,598.61,0,0,0,0,0,0,null,null,null,null,null,null,null,null,null,null,null,null,null,null,null,null,null,null,null,null,null,null,null,null,null,null,0,0,0,0,0,0,null,"1.3.1.1.",null,"REGULARIZACAO E COMPACTACAO DE SUBLEITO ATE 20 CM DE ESPESSURA","M2",null,{"$f":"IF(BR30>0,CHOOSE(MATCH(RegimeExecucao,{\"Unitário\",\"Global\"},0),IF($A30=\"S\",BR30/BN30,\"\"),(BR30/BN30)*100),\"\")","v":""},null,null,{"$f":"IF(BR30>0,CHOOSE(MATCH(RegimeExecucao,{\"Unitário\",\"Global\"},0),IF($A30=\"S\",ROUND(P30,arredunit),\"\"),ROUND(R30,arredtot)),\"\")","v":""},null,null,null,0]
["S",0,1,2,1,0,2,0,0,3,"Serviço","1.3.1.2.","ASSENTAMENTO DE GUIA (MEIO-FIO) EM TRECHO RETO, CONFECCIONADA EM CONCRETO PRÉ-FABRICADO, DIMENSÕES 100X15X13X30 CM (COMPRIMENTO X BASE INFERIOR X BASE SUPERIOR X ALTURA), PARA VIAS URBANAS (USO VIÁRIO). AF_06/2016","M",729.64,40.28,6244.15,6244.15,0,0,0,0,0,0,null,null,null,null,null,null,null,null,null,null,null,null,null,null,null,null,null,null,null,null,null,null,null,null,null,null,0,0,0,0,0,0,null,"1.3.1.2.",null,"ASSENTAMENTO DE GUIA (MEIO-FIO) EM TRECHO RETO, CONFECCIONADA EM CONCRETO PRÉ-FABRICADO, DIMENSÕES 100X15X13X30 CM (COMPRIMENTO X BASE INFERIOR X BASE SUPERIOR X ALTURA), PARA VIAS URBANAS (USO VIÁRIO). AF_06/2016","M",null,{"$f":"IF(BR31>0,CHOOSE(MATCH(RegimeExecucao,{\"Unitário\",\"Global\"},0),IF($A31=\"S\",BR31/BN31,\"\"),(BR31/BN31)*100),\"\")","v":""},null,null,{"$f":"IF(BR31>0,CHOOSE(MATCH(RegimeExecucao,{\"Unitário\",\"Global\"},0),IF($A31=\"S\",ROUND(P31,arredunit),\"\"),ROUND(R31,arredtot)),\"\")","v":""},null,null,null,0]
["S",0,1,2,1,0,3,0,0,3,"Serviço","1.3.1.3.","EXECUÇÃO DE SARJETA DE CONCRETO USINADO, MOLDADA  IN LOCO  EM TRECHO RETO, 30 CM BASE X 15 CM ALTURA. AF_06/2016","M",729.64,41.21,5444.62,5444.62,0,0,0,0,0,0,null,null,null,null,null,null,null,null,null,null,null,null,null,null,null,null,null,null,null,null,null,null,null,null,null,null,0,0,0,0,0,0,null,"1.3.1.3.",null,"EXECUÇÃO DE SARJETA DE CONCRETO USINADO, MOLDADA  IN LOCO  EM TRECHO RETO, 30 CM BASE X 15 CM ALTURA. AF_06/2016","M",null,{"$f":"IF(BR32>0,CHOOSE(MATCH(RegimeExecucao,{\"Unitário\",\"Global\"},0),IF($A32=\"S\",BR32/BN32,\"\"),(BR32/BN32)*100),\"\")","v":""},null,null,{"$f":"IF(BR32>0,CHOOSE(MATCH(RegimeExecucao,{\"Unitário\",\"Global\"},0),IF($A32=\"S\",ROUND(P32,arredunit),\"\"),ROUND(R32,arredtot)),\"\")","v":""},null,null,null,0]
["S",0,1,2,1,0,4,0,0,3,"Serviço","1.3.1.4.","PAVIMENTO EM PARALELEPIPEDO SOBRE COLCHAO DE AREIA REJUNTADO COM ARGAMASSA DE CIMENTO E AREIA NO TRAÇO 1:3 (PEDRAS PEQUENAS 30 A 35 PECAS POR M2)","M2",1427.25,61.22,19577.32,19577.32,0,0,0,0,0,0,null,null,null,null,null,null,null,null,null,null,null,null,null,null,null,null,null,null,null,null,null,null,null,null,null,null,0,0,0,0,0,0,null,"1.3.1.4.",null,"PAVIMENTO EM PARALELEPIPEDO SOBRE COLCHAO DE AREIA REJUNTADO COM ARGAMASSA DE CIMENTO E AREIA NO TRAÇO 1:3 (PEDRAS PEQUENAS 30 A 35 PECAS POR M2)","M2",null,{"$f":"IF(BR33>0,CHOOSE(MATCH(RegimeExecucao,{\"Unitário\",\"Global\"},0),IF($A33=\"S\",BR33/BN33,\"\"),(BR33/BN33)*100),\"\")","v":""},null,null,{"$f":"IF(BR33>0,CHOOSE(MATCH(RegimeExecucao,{\"Unitário\",\"Global\"},0),IF($A33=\"S\",ROUND(P33,arredunit),\"\"),ROUND(R33,arredtot)),\"\")","v":""},null,null,null,0]
[3,4,1,2,2,0,0,4,{"$error":"#N/A"},2,"Nível 3","1.3.2.","CALÇADA","",0,0,null,9812.61,0,0,0,0,0,0,null,null,null,null,null,null,null,null,null,null,null,null,null,null,null,null,null,null,null,null,null,null,null,null,null,null,0,0,0,0,0,0,null,"1.3.2.",null,"CALÇADA","",null,{"$f":"IF(BR34>0,CHOOSE(MATCH(RegimeExecucao,{\"Unitário\",\"Global\"},0),IF($A34=\"S\",BR34/BN34,\"\"),(BR34/BN34)*100),\"\")","v":""},null,null,{"$f":"IF(BR34>0,CHOOSE(MATCH(RegimeExecucao,{\"Unitário\",\"Global\"},0),IF($A34=\"S\",ROUND(P34,arredunit),\"\"),ROUND(R34,arredtot)),\"\")","v":""},null,null,null,0]
["S",0,1,2,2,0,1,0,0,3,"Serviço","1.3.2.1.","PISO TÁTIL DIRECIONAL E/OU ALERTA, DE CONCRETO - DIRECIONAL E ALERTA, 40X40X2,5 CM.","M2",28.8,90.58,978.06,978.06,0,0,0,0,0,0,null,null,null,null,null,null,null,null,null,null,null,null,null,null,null,null,null,null,null,null,null,null,null,null,null,null,0,0,0,0,0,0,null,"1.3.2.1.",null,"PISO TÁTIL DIRECIONAL E/OU ALERTA, DE CONCRETO - DIRECIONAL E ALERTA, 40X40X2,5 CM.","M2",null,{"$f":"IF(BR35>0,CHOOSE(MATCH(RegimeExecucao,{\"Unitário\",\"Global\"},0),IF($A35=\"S\",BR35/BN35,\"\"),(BR35/BN35)*100),\"\")","v":""},null,null,{"$f":"IF(BR35>0,CHOOSE(MATCH(RegimeExecucao,{\"Unitário\",\"Global\"},0),IF($A35=\"S\",ROUND(P35,arredunit),\"\"),ROUND(R35,arredtot)),\"\")","v":""},null,null,null,0]
["S",0,1,2,2,0,2,0,0,3,"Serviço","1.3.2.2.","ALVENARIA DE EMBASAMENTO EM TIJOLOS CERAMICOS MACICOS 5X10X20CM, ASSENTADO  COM ARGAMASSA TRACO 1:2:8 (CIMENTO, CAL E AREIA)","M3",14.35,696.86,1773.19,1773.19,0,0,0,0,0,0,null,null,null,null,null,null,null,null,null,null,null,null,null,null,null,null,null,null,null,null,null,null,null,null,null,null,0,0,0,0,0,0,null,"1.3.2.2.",null,"ALVENARIA DE EMBASAMENTO EM TIJOLOS CERAMICOS MACICOS 5X10X20CM, ASSENTADO  COM ARGAMASSA TRACO 1:2:8 (CIMENTO, CAL E AREIA)","M3",null,{"$f":"IF(BR36>0,CHOOSE(MATCH(RegimeExecucao,{\"Unitário\",\"Global\"},0),IF($A36=\"S\",BR36/BN36,\"\"),(BR36/BN36)*100),\"\")","v":""},null,null,{"$f":"IF(BR36>0,CHOOSE(MATCH(RegimeExecucao,{\"Unitário\",\"Global\"},0),IF($A36=\"S\",ROUND(P36,arredunit),\"\"),ROUND(R36,arredtot)),\"\")","v":""},null,null,null,0]
[{"$f":"CHOOSE(1+LOG(1+2*(K37=\"Meta\")+4*(K37=\"Nível 2\")+8*(K37=\"Nível 3\")+16*(K37=\"Nível 4\")+32*(K37=\"Serviço\"),2),0,1,2,3,4,\"S\")","v":"S"},{"$f":"IF(OR(A37=\"S\",A37=0),0,IF(ISERROR(I37),H37,SMALL(H37:I37,1)))","v":0},1,2,2,0,3,0,0,3,"Serviço","1.3.2.3.","EXECUÇÃO DE PASSEIO (CALÇADA) OU PISO DE CONCRETO COM CONCRETO MOLDADO IN LOCO, FEITO EM OBRA, ACABAMENTO CONVENCIONAL, NÃO ARMADO. AF_07/2016","M3",75.72,647.71,7061.36,7061.36,{"$f":"IF(AND($A37=\"S\",COUNTIF($Z$13:$AW$13,mediçao-1)>0),SUM(OFFSET($Z37,0,0,1,MATCH(mediçao-1,$Z$13:$AW$13,0))),IF(AND(RegimeExecucao=\"Global\",$R37>0,COUNTIF($Z$13:$AW$13,mediçao-1)>0),V37/$R37*100,0))","v":0},{"$f":"U37-S37","v":0},{"$f":"IF(AND($A37=\"S\",COUNTIF($Z$13:$AW$13,mediçao)>0),SUM(OFFSET($Z37,0,0,1,MATCH(mediçao,$Z$13:$AW$13,0))),IF(AND(RegimeExecucao=\"Global\",$R37>0,COUNTIF($Z$13:$AW$13,mediçao)>0),X37/$R37*100,0))","v":0},0,{"$f":"X37-V37","v":0},0,null,null,null,null,null,null,null,null,null,null,null,null,null,null,null,null,null,null,null,null,null,null,null,null,null,null,0,{"$f":"BA37-AY37","v":0},0,0,{"$f":"BD37-BB37","v":0},0,null,{"$f":"IF(BK37>0,L37,\"\")","v":"1.3.2.3."},null,{"$f":"IF(BK37>0,M37,\"\")","v":"EXECUÇÃO DE PASSEIO (CALÇADA) OU PISO DE CONCRETO COM CONCRETO MOLDADO IN LOCO, FEITO EM OBRA, ACABAMENTO CONVENCIONAL, NÃO ARMADO. AF_07/2016"},{"$f":"IF(BK37>0,N37,\"\")","v":"M3"},null,{"$f":"IF(BR37>0,CHOOSE(MATCH(RegimeExecucao,{\"Unitário\",\"Global\"},0),IF($A37=\"S\",BR37/BN37,\"\"),(BR37/BN37)*100),\"\")","v":""},null,null,{"$f":"IF(BR37>0,CHOOSE(MATCH(RegimeExecucao,{\"Unitário\",\"Global\"},0),IF($A37=\"S\",ROUND(P37,arredunit),\"\"),ROUND(R37,arredtot)),\"\")","v":""},null,null,null,0]
[{"$f":"CHOOSE(1+LOG(1+2*(K38=\"Meta\")+4*(K38=\"Nível 2\")+8*(K38=\"Nível 3\")+16*(K38=\"Nível 4\")+32*(K38=\"Serviço\"),2),0,1,2,3,4,\"S\")","v":2},{"$f":"IF(OR(A38=\"S\",A38=0),0,IF(ISERROR(I38),H38,SMALL(H38:I38,1)))","v":6},1,3,0,0,0,6,{"$error":"#N/A"},1,"Nível 2","1.12.","SINALIZAÇÃO","",0,0,null,8031.91,{"$f":"IF(AND($A38=\"S\",COUNTIF($Z$13:$AW$13,mediçao-1)>0),SUM(OFFSET($Z38,0,0,1,MATCH(mediçao-1,$Z$13:$AW$13,0))),IF(AND(RegimeExecucao=\"Global\",$R38>0,COUNTIF($Z$13:$AW$13,mediçao-1)>0),V38/$R38*100,0))","v":0},{"$f":"U38-S38","v":0},{"$f":"IF(AND($A38=\"S\",COUNTIF($Z$13:$AW$13,mediçao)>0),SUM(OFFSET($Z38,0,0,1,MATCH(mediçao,$Z$13:$AW$13,0))),IF(AND(RegimeExecucao=\"Global\",$R38>0,COUNTIF($Z$13:$AW$13,mediçao)>0),X38/$R38*100,0))","v":0},0,{"$f":"X38-V38","v":0},0,null,null,null,null,null,null,null,null,null,null,null,null,null,null,null,null,null,null,null,null,null,null,null,null,null,null,0,{"$f":"BA38-AY38","v":0},0,0,{"$f":"BD38-BB38","v":0},0,null,{"$f":"IF(BK38>0,L38,\"\")","v":"1.12."},null,{"$f":"IF(BK38>0,M38,\"\")","v":"SINALIZAÇÃO"},{"$f":"IF(BK38>0,N38,\"\")","v":""},null,{"$f":"IF(BR38>0,CHOOSE(MATCH(RegimeExecucao,{\"Unitário\",\"Global\"},0),IF($A38=\"S\",BR38/BN38,\"\"),(BR38/BN38)*100),\"\")","v":""},null,null,{"$f":"IF(BR38>0,CHOOSE(MATCH(RegimeExecucao,{\"Unitário\",\"Global\"},0),IF($A38=\"S\",ROUND(P38,arredunit),\"\"),ROUND(R38,arredtot)),\"\")","v":""},null,null,null,0]
["S",0,1,3,0,0,1,0,0,3,"Serviço","1.12.0.1.","PLACA ESMALTADA PARA IDENTIFICAÇÃO NR DE RUA, DIMENSÕES 45X25CM","UN",20,99.38,402.04,402.04,0,0,0,0,0,0,null,null,null,null,null,null,null,null,null,null,null,null,null,null,null,null,null,null,null,null,null,null,null,null,null,null,0,0,0,0,0,0,null,"1.12.0.1.",null,"PLACA ESMALTADA PARA IDENTIFICAÇÃO NR DE RUA, DIMENSÕES 45X25CM","UN",null,{"$f":"IF(BR39>0,CHOOSE(MATCH(RegimeExecucao,{\"Unitário\",\"Global\"},0),IF($A39=\"S\",BR39/BN39,\"\"),(BR39/BN39)*100),\"\")","v":""},null,null,{"$f":"IF(BR39>0,CHOOSE(MATCH(RegimeExecucao,{\"Unitário\",\"Global\"},0),IF($A39=\"S\",ROUND(P39,arredunit),\"\"),ROUND(R39,arredtot)),\"\")","v":""},null,null,null,0]
["S",0,1,3,0,0,2,0,0,3,"Serviço","1.12.0.2.","Fornecimento e implantação de placa de regulamentação em aço D = 0,60 m - película retrorrefletiva tipo I e SI","UND",48,211.19,2460,2460,0,0,0,0,0,0,null,null,null,null,null,null,null,null,null,null,null,null,null,null,null,null,null,null,null,null,null,null,null,null,null,null,0,0,0,0,0,0,null,"1.12.0.2.",null,"Fornecimento e implantação de placa de regulamentação em aço D = 0,60 m - película retrorrefletiva tipo I e SI","UND",null,{"$f":"IF(BR40>0,CHOOSE(MATCH(RegimeExecucao,{\"Unitário\",\"Global\"},0),IF($A40=\"S\",BR40/BN40,\"\"),(BR40/BN40)*100),\"\")","v":""},null,null,{"$f":"IF(BR40>0,CHOOSE(MATCH(RegimeExecucao,{\"Unitário\",\"Global\"},0),IF($A40=\"S\",ROUND(P40,arredunit),\"\"),ROUND(R40,arredtot)),\"\")","v":""},null,null,null,0]
["S",0,1,3,0,0,3,0,0,3,"Serviço","1.12.0.3.","Fornecimento e implantação de placa de regulamentação em aço, R1 lado 0,248 m - película retrorrefletiva tipo I e SI","UND",22,260.88,1122.05,1122.05,0,0,0,0,0,0,null,null,null,null,null,null,null,null,null,null,null,null,null,null,null,null,null,null,null,null,null,null,null,null,null,null,0,0,0,0,0,0,null,"1.12.0.3.",null,"Fornecimento e implantação de placa de regulamentação em aço, R1 lado 0,248 m - película retrorrefletiva tipo I e SI","UND",null,{"$f":"IF(BR41>0,CHOOSE(MATCH(RegimeExecucao,{\"Unitário\",\"Global\"},0),IF($A41=\"S\",BR41/BN41,\"\"),(BR41/BN41)*100),\"\")","v":""},null,null,{"$f":"IF(BR41>0,CHOOSE(MATCH(RegimeExecucao,{\"Unitário\",\"Global\"},0),IF($A41=\"S\",ROUND(P41,arredunit),\"\"),ROUND(R41,arredtot)),\"\")","v":""},null,null,null,0]
["S",0,1,3,0,0,4,0,0,3,"Serviço","1.12.0.4.","Fornecimento e implantação de suporte metálico galvanizado para placa de regulamentação - D = 0,60 m","UND",48,233.55,2797.32,2797.32,0,0,0,0,0,0,null,null,null,null,null,null,null,null,null,null,null,null,null,null,null,null,null,null,null,null,null,null,null,null,null,null,0,0,0,0,0,0,null,"1.12.0.4.",null,"Fornecimento e implantação de suporte metálico galvanizado para placa de regulamentação - D = 0,60 m","UND",null,{"$f":"IF(BR42>0,CHOOSE(MATCH(RegimeExecucao,{\"Unitário\",\"Global\"},0),IF($A42=\"S\",BR42/BN42,\"\"),(BR42/BN42)*100),\"\")","v":""},null,null,{"$f":"IF(BR42>0,CHOOSE(MATCH(RegimeExecucao,{\"Unitário\",\"Global\"},0),IF($A42=\"S\",ROUND(P42,arredunit),\"\"),ROUND(R42,arredtot)),\"\")","v":""},null,null,null,0]
["S",0,1,3,0,0,5,0,0,3,"Serviço","1.12.0.5.","Fornecimento e implantação de suporte metálico galvanizado para placa de regulamentação - R1 - lado de 0,248 m","UND",22,248.34,1250.5,1250.5,0,0,0,0,0,0,null,null,null,null,null,null,null,null,null,null,null,null,null,null,null,null,null,null,null,null,null,null,null,null,null,null,0,0,0,0,0,0,null,"1.12.0.5.",null,"Fornecimento e implantação de suporte metálico galvanizado para placa de regulamentação - R1 - lado de 0,248 m","UND",null,{"$f":"IF(BR43>0,CHOOSE(MATCH(RegimeExecucao,{\"Unitário\",\"Global\"},0),IF($A43=\"S\",BR43/BN43,\"\"),(BR43/BN43)*100),\"\")","v":""},null,null,{"$f":"IF(BR43>0,CHOOSE(MATCH(RegimeExecucao,{\"Unitário\",\"Global\"},0),IF($A43=\"S\",ROUND(P43,arredunit),\"\"),ROUND(R43,arredtot)),\"\")","v":""},null,null,null,0]
[-1,0,0,0,0,0,0]
[null,null,null,null,null,null,null,null,null,null,null,null,null,null,null,null,null,null,null,null,null,null,null,null,null,null,null,null,null,null,null,null,null,null,null,null,null,null,null,null,null,null,null,null,null,null,null,null,null,null,null,null,null,null,null,null,null,null,null,null,null,null,null,null,null,null,null,null,null,null,null,null,null,null,null,null,null,null,null,null,false]
[null,null,null,null,null,null,null,null,null,null,null,"Obs:"]
[]
[null,null,null,null,null,null,null,null,null,null,null,"Obs 2:",{"$f":"IF(OR(AND($R$3=FALSE,$S$3=FALSE,RegimeExecucao=\"Global\"),AND($O$3=FALSE,$P$3=FALSE,$R$3=FALSE,$S$3=FALSE)),\"Não foi considerado arredondamento nos valores da planilha.\",CONCATENATE(\"Foi considerado arredondamento de duas casas decimais para \",IF(AND(RegimeExecucao=\"Unitário\",$O$3=TRUE),\"Quantidade; \",\"\"),IF(AND(RegimeExecucao=\"Unitário\",$P$3=TRUE),\"Preço unitário; \",\"\"),IF($R$3=TRUE,\"Preço total; \",\"\"),,IF($S$3=TRUE,\"Medição.\",\"\")))","v":"Foi considerado arredondamento de duas casas decimais para Preço total; Medição."}]
[null,null,null,null,null,null,null,null,null,null,null,"Os serviços medidos informados neste BM encontram-se concluídos, estão em conformidade com os projetos e especificações aceitos pela CAIXA e foram executados de acordo com as normas técnicas.",null,null,null,null,null,null,null,null,null,null,null,null,null,null,null,null,null,null,null,null,null,null,null,null,null,null,null,null,null,null,null,null,null,null,null,null,null,null,null,null,null,null,null,null,null,null,null,null,null,null,null,null,null,null,null,null,null,null,null,null,null,null,null,null,null,null,null,null,"Os serviços medidos informados neste BM encontram-se concluídos, estão em conformidade com os projetos e especificações aceitos pela CAIXA e foram executados de acordo com as normas técnicas."]
[null,null,null,null,null,null,null,null,null,null,null,{"$f":"DADOS!$D$23&\", \"&TEXT(TODAY(),\"dd\")&\" de \"&TEXT(TODAY(),\"mmmm\")&\" de \"&TEXT(TODAY(),\"aaaa\")","v":"Vertentes/PE, 26 de abril de 2022"},null,null,null,null,null,null,null,null,null,null,null,null,null,null,null,null,null,null,null,null,null,null,null,null,null,null,null,null,null,null,null,null,null,null,null,null,null,null,null,null,null,null,null,null,null,null,null,null,null,null,null,null,null,null,null,null,null,null,null,null,null,null,null,null,null,null,null,null,"1. A vistoria, no caso de obras, tem como principal objetivo observar o seu estágio atual de andamento e se o que é visualizável em campo é compatível com o avanço físico do empreendimento atestado no BM da fiscalização técnica do tomador.\n2. A vistoria técnica é amparada exclusivamente em constatação visual, sem qualquer apoio de instrumentos, testes e/ou ensaios e a precisão esperada das informações é compatível com essa metodologia.\n3. O ateste, a medição, a fiscalização e a aceitação dos serviços realizados e materiais/equipamentos utilizados na obra são de responsabilidade do profissional indicado pelo agente promotor/tomador como Fiscal da Obra, conforme ART específica."]
[null,null,null,null,null,null,null,null,null,null,null,"Local e Data",null,null,null,"Resp. Técnico Fiscalização:",null,{"$f":"IF(DADOS!A50=\"\",\"\",DADOS!A50)","v":""},null,null,null,"Resp. Técnico Fiscalização:",{"$f":"DADOS!A43","v":"Sofia Ximenes Lopes"},null,null,null,null,null,null,null,null,null,null,null,null,null,null,null,null,null,null,null,null,null,null,null,null,null,null,null,null,null,null,"Profissional CAIXA:",null,null,null,null,null,null,"Profissional CAIXA:",null,null,null,null,{"$f":"BC51","v":0}]
[null,null,null,null,null,null,null,null,null,null,null,null,null,null,null,"CREA/CAU:",null,{"$f":"DADOS!C50","v":0},null,null,null,"CREA/CAU:",{"$f":"DADOS!C43","v":"1816729965"},null,null,null,null,null,null,null,null,null,null,null,null,null,null,null,null,null,null,null,null,null,null,null,null,null,null,null,null,null,null,"Matrícula:",null,null,null,null,null,null,"Matrícula:",null,null,null,null,{"$f":"BC52","v":0}]
[null,null,null,null,null,null,null,null,null,null,null,null,null,null,null,"ART/RRT:",null,{"$f":"DADOS!D50","v":0},null,null,null,"ART/RRT:",{"$f":"DADOS!D43","v":"PE20200468894"},null,null,null,null,null,null,null,null,null,null,null,null,null,null,null,null,null,null,null,null,null,null,null,null,null,null,null,null,null,null,"CREA/CAU:",null,null,null,null,null,null,"CREA/CAU:",null,null,null,null,{"$f":"BC53","v":0}]